Workbook

Sheet HK1-2016-2017
A1: DANH SÁCH SINH VIÊN CÔNG NHẬN KẾT QUẢ RÈN LUYỆN
A2: HỌC KÌ 1 NĂM HỌC 2016-2017
A4: TT | B4: Học kì- Năm học | C4: Mã SV | D4: Họ và tên | E4: Lớp | F4: Điểm rèn luyện | G4: Điểm rèn luyện quy đổi | H4: Xếp loại | I4: Ghi chú
A5: 1 | B5: 1_2016-2017 | C5: 1251150743 | D5: Phạm Văn Hùng | E5: 54 TĐ-BĐ | F5: 75 | G5: =F5/100 -> 0.75 | H5: =IF(F5>89,"Xuất sắc",IF((F5>79)*AND(F5<90),"Tốt",IF((F5>64)*AND(F5<80),"Khá",IF((F5>49)*AND(F5<65),"Trung bình",IF((F5>34)*AND(F5<50),"Yếu",IF((F5<35)*AND(F5>=0),"Kém"," ")))))) -> Khá
A6: =+A5+1 -> 2 | B6: 1_2016-2017 | C6: 1251150747 | D6: Phùng Quang Nam | E6: 54 TĐ-BĐ | F6: 81 | G6: =F6/100 -> 0.81 | H6: =IF(F6>89,"Xuất sắc",IF((F6>79)*AND(F6<90),"Tốt",IF((F6>64)*AND(F6<80),"Khá",IF((F6>49)*AND(F6<65),"Trung bình",IF((F6>34)*AND(F6<50),"Yếu",IF((F6<35)*AND(F6>=0),"Kém"," ")))))) -> Tốt
A7: =+A6+1 -> 3 | B7: 1_2016-2017 | C7: 1251150757 | D7: Nguyễn Vĩnh Trường | E7: 54 TĐ-BĐ | F7: 70 | G7: =F7/100 -> 0.70 | H7: =IF(F7>89,"Xuất sắc",IF((F7>79)*AND(F7<90),"Tốt",IF((F7>64)*AND(F7<80),"Khá",IF((F7>49)*AND(F7<65),"Trung bình",IF((F7>34)*AND(F7<50),"Yếu",IF((F7<35)*AND(F7>=0),"Kém"," ")))))) -> Khá
A8: 4 | B8: 1_2016-2017 | C8: 1351152932 | D8: Hà Kiều Anh | E8: 55 TĐ-BĐ | F8: 90 | G8: 0.90 | H8: =IF(F8>89,"Xuất sắc",IF((F8>79)*AND(F8<90),"Tốt",IF((F8>64)*AND(F8<80),"Khá",IF((F8>49)*AND(F8<65),"Trung bình",IF((F8>34)*AND(F8<50),"Yếu",IF((F8<35)*AND(F8>=0),"Kém"," ")))))) -> Xuất sắc
A9: 5 | B9: 1_2016-2017 | C9: 1351152935 | D9: Nguyễn Thị Phương Anh | E9: 55 TĐ-BĐ | F9: 83 | G9: 0.83 | H9: Tốt
A10: 6 | B10: 1_2016-2017 | C10: 1351150109 | D10: Phùng Tuấn Anh | E10: 55 TĐ-BĐ | F10: 82 | G10: 0.82 | H10: Tốt
A11: 7 | B11: 1_2016-2017 | C11: 1351152958 | D11: Lâm Thanh Bình | E11: 55 TĐ-BĐ | F11: 76 | G11: 0.76 | H11: Khá
A12: 8 | B12: 1_2016-2017 | C12: 1351152964 | D12: Nguyễn Thị Chinh | E12: 55 TĐ-BĐ | F12: 86 | G12: 0.86 | H12: Tốt
A13: 9 | B13: 1_2016-2017 | C13: 1351152963 | D13: Phạm Thị Chinh | E13: 55 TĐ-BĐ | F13: 75 | G13: 0.75 | H13: Khá
A14: 10 | B14: 1_2016-2017 | C14: 1351152978 | D14: Bùi Ngọc Dũng | E14: 55 TĐ-BĐ | F14: 74 | G14: 0.74 | H14: Khá
A15: 11 | B15: 1_2016-2017 | C15: 1351152979 | D15: Nguyễn Tuấn Dũng | E15: 55 TĐ-BĐ | F15: 61 | G15: 0.61 | H15: Trung bình
A16: 12 | B16: 1_2016-2017 | C16: 1351152984 | D16: Trịnh Thị Dương | E16: 55 TĐ-BĐ | F16: 70 | G16: 0.70 | H16: Khá
A17: 13 | B17: 1_2016-2017 | C17: 1351152996 | D17: Mai Trọng Điệp | E17: 55 TĐ-BĐ | F17: 74 | G17: 0.74 | H17: Khá
A18: 14 | B18: 1_2016-2017 | C18: 1351152998 | D18: Vũ Ngọc Đoài | E18: 55 TĐ-BĐ | F18: 61 | G18: 0.61 | H18: Trung bình
A19: 15 | B19: 1_2016-2017 | C19: 1351152999 | D19: Hoàng Văn Đôn | E19: 55 TĐ-BĐ | F19: 85 | G19: 0.85 | H19: Tốt
A20: 16 | B20: 1_2016-2017 | C20: 1351150473 | D20: Nguyễn Thành Đồng | E20: 55 TĐ-BĐ | F20: 74 | G20: 0.74 | H20: Khá
A21: 17 | B21: 1_2016-2017 | C21: 1351150527 | D21: Đặng Minh Giang | E21: 55 TĐ-BĐ | F21: 74 | G21: 0.74 | H21: Khá
A22: 18 | B22: 1_2016-2017 | C22: 1351153003 | D22: Lương Đức Hà Giang | E22: 55 TĐ-BĐ | F22: 62 | G22: 0.62 | H22: Trung bình
A23: 19 | B23: 1_2016-2017 | C23: 1351153258 | D23: Phạm Nguyên Giáp | E23: 55 TĐ-BĐ | F23: 65 | G23: 0.65 | H23: Khá
A24: 20 | B24: 1_2016-2017 | C24: 1351153011 | D24: Bùi Thiên Hải | E24: 55 TĐ-BĐ | F24: 70 | G24: 0.70 | H24: Khá
A25: 21 | B25: 1_2016-2017 | C25: 1351153016 | D25: Dương Thị Mỹ Hảo | E25: 55 TĐ-BĐ | F25: 80 | G25: 0.80 | H25: Tốt
A26: 22 | B26: 1_2016-2017 | C26: 1351153021 | D26: Nguyễn Văn Hiển | E26: 55 TĐ-BĐ | F26: 61 | G26: 0.61 | H26: Trung bình
A27: 23 | B27: 1_2016-2017 | C27: 1351153024 | D27: Bùi Đăng Hiệp | E27: 55 TĐ-BĐ | F27: 68 | G27: 0.68 | H27: Khá
A28: 24 | B28: 1_2016-2017 | C28: 1351153025 | D28: Nguyễn Đức Hiệp | E28: 55 TĐ-BĐ | F28: 73 | G28: 0.73 | H28: Khá
A29: 25 | B29: 1_2016-2017 | C29: 1351153028 | D29: Nguyễn Thị Hiếu | E29: 55 TĐ-BĐ | F29: 86 | G29: 0.86 | H29: Tốt
A30: 26 | B30: 1_2016-2017 | C30: 1351153033 | D30: Nông Thanh Hoàng | E30: 55 TĐ-BĐ | F30: 74 | G30: 0.74 | H30: Khá
A31: 27 | B31: 1_2016-2017 | C31: 1351150985 | D31: Bùi Hữu Huy | E31: 55 TĐ-BĐ | F31: 85 | G31: 0.85 | H31: Tốt
A32: 28 | B32: 1_2016-2017 | C32: 1351153055 | D32: Nguyễn Thị Huyền | E32: 55 TĐ-BĐ | F32: 67 | G32: 0.67 | H32: Khá
A33: 29 | B33: 1_2016-2017 | C33: 1351153054 | D33: Trần Khánh Huyền | E33: 55 TĐ-BĐ | F33: 76 | G33: 0.76 | H33: Khá
A34: 30 | B34: 1_2016-2017 | C34: 1351153042 | D34: Nguyễn Thị Hương | E34: 55 TĐ-BĐ | F34: 73 | G34: 0.73 | H34: Khá
A35: 31 | B35: 1_2016-2017 | C35: 1351153044 | D35: Nguyễn Thị Hường | E35: 55 TĐ-BĐ | F35: 75 | G35: 0.75 | H35: Khá
A36: 32 | B36: 1_2016-2017 | C36: 1351153045 | D36: Trần Thị Hường | E36: 55 TĐ-BĐ | F36: 73 | G36: 0.73 | H36: Khá
A37: 33 | B37: 1_2016-2017 | C37: 1351153254 | D37: Nguyễn Ngọc Khánh | E37: 55 TĐ-BĐ | F37: 75 | G37: 0.75 | H37: Khá
A38: 34 | B38: 1_2016-2017 | C38: 1351153061 | D38: Nguyễn Văn Khánh | E38: 55 TĐ-BĐ | F38: 68 | G38: 0.68 | H38: Khá
A39: 35 | B39: 1_2016-2017 | C39: 1351151068 | D39: Lưu Nguyên Khoa | E39: 55 TĐ-BĐ | F39: 75 | G39: 0.75 | H39: Khá
A40: 36 | B40: 1_2016-2017 | C40: 1351153065 | D40: Bùi Văn Khương | E40: 55 TĐ-BĐ | F40: 62 | G40: 0.62 | H40: Trung bình
A41: 37 | B41: 1_2016-2017 | C41: 1351153069 | D41: Hoàng Trọng Kim | E41: 55 TĐ-BĐ | F41: 73 | G41: 0.73 | H41: Khá
A42: 38 | B42: 1_2016-2017 | C42: 1351153078 | D42: Lương Thị Liên | E42: 55 TĐ-BĐ | F42: 71 | G42: 0.71 | H42: Khá
A43: 39 | B43: 1_2016-2017 | C43: 1351153081 | D43: Nguyễn Thế Linh | E43: 55 TĐ-BĐ | F43: 83 | G43: 0.83 | H43: Tốt
A44: 40 | B44: 1_2016-2017 | C44: 1351153089 | D44: Nguyễn Thị Luyên | E44: 55 TĐ-BĐ | F44: 76 | G44: 0.76 | H44: Khá
A45: 41 | B45: 1_2016-2017 | C45: 1351153091 | D45: Đoàn Quang Mấn | E45: 55 TĐ-BĐ | F45: 76 | G45: 0.76 | H45: Khá
A46: 42 | B46: 1_2016-2017 | C46: 1351153103 | D46: Bùi Khắc Nam | E46: 55 TĐ-BĐ | F46: 71 | G46: 0.71 | H46: Khá
A47: 43 | B47: 1_2016-2017 | C47: 1351151445 | D47: Đặng Huy Nguyên | E47: 55 TĐ-BĐ | F47: 76 | G47: 0.76 | H47: Khá
A48: 44 | B48: 1_2016-2017 | C48: 1351153119 | D48: Nguyễn Thị Hồng Nhung | E48: 55 TĐ-BĐ | F48: 86 | G48: 0.86 | H48: Tốt
A49: 45 | B49: 1_2016-2017 | C49: 1351153123 | D49: Chu Pó Phạ | E49: 55 TĐ-BĐ | F49: 66 | G49: 0.66 | H49: Khá
A50: 46 | B50: 1_2016-2017 | C50: 1351153135 | D50: Đỗ Thị Phương | E50: 55 TĐ-BĐ | F50: 71 | G50: 0.71 | H50: Khá
A51: 47 | B51: 1_2016-2017 | C51: 1351151597 | D51: Vù Hồng Phượng | E51: 55 TĐ-BĐ | F51: 70 | G51: 0.70 | H51: Khá
A52: 48 | B52: 1_2016-2017 | C52: 135NK0126 | D52: Bùi Đức Quang | E52: 55 TĐ-BĐ | F52: 68 | G52: 0.68 | H52: Khá
A53: 49 | B53: 1_2016-2017 | C53: 1351153153 | D53: Nguyễn Thị Sương | E53: 55 TĐ-BĐ | F53: 76 | G53: 0.76 | H53: Khá
A54: 50 | B54: 1_2016-2017 | C54: 1351151776 | D54: Nguyễn Quốc Tân | E54: 55 TĐ-BĐ | F54: 60 | G54: 0.60 | H54: Trung bình
A55: 51 | B55: 1_2016-2017 | C55: 1351153158 | D55: Trần Duy Tân | E55: 55 TĐ-BĐ | F55: 74 | G55: 0.74 | H55: Khá
A56: 52 | B56: 1_2016-2017 | C56: 1351153160 | D56: Chu Văn Thái | E56: 55 TĐ-BĐ | F56: 64 | G56: 0.64 | H56: Trung bình
A57: 53 | B57: 1_2016-2017 | C57: 1351153167 | D57: Nguyễn Thị Băng Thanh | E57: 55 TĐ-BĐ | F57: 86 | G57: 0.86 | H57: Tốt
A58: 54 | B58: 1_2016-2017 | C58: 1351151885 | D58: Nguyễn Văn Thành | E58: 55 TĐ-BĐ | F58: 76 | G58: 0.76 | H58: Khá
A59: 55 | B59: 1_2016-2017 | C59: 1351153172 | D59: Phạm Trung Thành | E59: 55 TĐ-BĐ | F59: 61 | G59: 0.61 | H59: Trung bình
A60: 56 | B60: 1_2016-2017 | C60: 1351153176 | D60: Trịnh Thị Thảo | E60: 55 TĐ-BĐ | F60: 70 | G60: 0.70 | H60: Khá
A61: 57 | B61: 1_2016-2017 | C61: 1351153163 | D61: Trần Quốc Thắng | E61: 55 TĐ-BĐ | F61: 71 | G61: 0.71 | H61: Khá
A62: 58 | B62: 1_2016-2017 | C62: 1351153179 | D62: Nguyễn Bá Thọ | E62: 55 TĐ-BĐ | F62: 80 | G62: 0.80 | H62: Tốt
A63: 59 | B63: 1_2016-2017 | C63: 1351153185 | D63: Đinh Thị Thúy | E63: 55 TĐ-BĐ | F63: 77 | G63: 0.77 | H63: Khá
A64: 60 | B64: 1_2016-2017 | C64: 1351153188 | D64: Nguyễn Hữu Thùy | E64: 55 TĐ-BĐ | F64: 85 | G64: 0.85 | H64: Tốt
A65: 61 | B65: 1_2016-2017 | C65: 1351152091 | D65: Phan Đức Toàn | E65: 55 TĐ-BĐ | F65: 61 | G65: 0.61 | H65: Trung bình
A66: 62 | B66: 1_2016-2017 | C66: 1351153201 | D66: Nguyễn Thị Trà | E66: 55 TĐ-BĐ | F66: 75 | G66: 0.75 | H66: Khá
A67: 63 | B67: 1_2016-2017 | C67: 1351153224 | D67: Nguyễn Viết Tuấn | E67: 55 TĐ-BĐ | F67: 69 | G67: 0.69 | H67: Khá
A68: 64 | B68: 1_2016-2017 | C68: 1351153240 | D68: Hoàng Thị Thúy Vân | E68: 55 TĐ-BĐ | F68: 86 | G68: 0.86 | H68: Tốt
A69: 65 | B69: 1_2016-2017 | C69: 1351153245 | D69: Đặng Như Việt | E69: 55 TĐ-BĐ | F69: 74 | G69: 0.74 | H69: Khá
A70: 66 | B70: 1_2016-2017 | C70: 1351153247 | D70: Phạm Tuấn Vũ | E70: 55 TĐ-BĐ | F70: 65 | G70: 0.65 | H70: Khá
A71: =+A70+1 -> 67 | B71: 1_2016-2017 | C71: 1451153149 | D71: Bùi Mỹ Anh | E71: 56 TĐ-BĐ | F71: 93 | G71: 0.93 | H71: Xuất sắc
A72: 68 | B72: 1_2016-2017 | C72: 1451151047 | D72: Lê Đăng Tuấn Anh | E72: 56 TĐ-BĐ | F72: 88 | G72: 0.88 | H72: =IF(F72>89,"Xuất sắc",IF((F72>79)*AND(F72<90),"Tốt",IF((F72>64)*AND(F72<80),"Khá",IF((F72>49)*AND(F72<65),"Trung bình",IF((F72>34)*AND(F72<50),"Yếu",IF((F72<35)*AND(F72>=0),"Kém"," ")))))) -> Tốt
A73: 69 | B73: 1_2016-2017 | C73: 1451153206 | D73: Nguyễn Diệp Anh | E73: 56 TĐ-BĐ | F73: 80 | G73: 0.80 | H73: Tốt
A74: 70 | B74: 1_2016-2017 | C74: 1451153512 | D74: Nguyễn Hữu Trung Anh | E74: 56 TĐ-BĐ | F74: 80 | G74: 0.80 | H74: Tốt
A75: 71 | B75: 1_2016-2017 | C75: 1451152851 | D75: Nguyễn Việt Anh | E75: 56 TĐ-BĐ | F75: 80 | G75: 0.80 | H75: Tốt
A76: 72 | B76: 1_2016-2017 | C76: 1451152461 | D76: Trần Duy Tuấn Anh | E76: 56 TĐ-BĐ | F76: 75 | G76: 0.75 | H76: Khá
A77: 73 | B77: 1_2016-2017 | C77: 1451153054 | D77: Trần Tuấn Anh | E77: 56 TĐ-BĐ | F77: 80 | G77: 0.80 | H77: Tốt
A78: 74 | B78: 1_2016-2017 | C78: 1451152774 | D78: Vũ Hải Anh | E78: 56 TĐ-BĐ | F78: 60 | G78: 0.60 | H78: Trung bình
A79: 75 | B79: 1_2016-2017 | C79: 1451152574 | D79: Thịnh Hồng Bắc | E79: 56 TĐ-BĐ | F79: 80 | G79: 0.80 | H79: Tốt
A80: 76 | B80: 1_2016-2017 | C80: 1451152471 | D80: Lê Thị Bình | E80: 56 TĐ-BĐ | F80: 74 | G80: =F80/100 -> 0.74 | H80: Khá
A81: 77 | B81: 1_2016-2017 | C81: 1451153262 | D81: Võ Thị Minh Chi | E81: 56 TĐ-BĐ | F81: 87 | G81: 0.87 | H81: Tốt
A82: 78 | B82: 1_2016-2017 | C82: 1451152863 | D82: Đặng Quốc Cường | E82: 56 TĐ-BĐ | F82: 70 | G82: 0.70 | H82: Khá
A83: 79 | B83: 1_2016-2017 | C83: 1451152468 | D83: Nguyễn Mạnh Cường | E83: 56 TĐ-BĐ | F83: 70 | G83: 0.70 | H83: Khá
A84: 80 | B84: 1_2016-2017 | C84: 1451152749 | D84: Nguyễn Văn Cường | E84: 56 TĐ-BĐ | F84: 74 | G84: 0.74 | H84: Khá
A85: 81 | B85: 1_2016-2017 | C85: 1451152974 | D85: Lưu Khánh Duy | E85: 56 TĐ-BĐ | F85: 74 | G85: 0.74 | H85: Khá
A86: 82 | B86: 1_2016-2017 | C86: 1451153090 | D86: Lương Thị Thùy Dương | E86: 56 TĐ-BĐ | F86: 80 | G86: 0.80 | H86: Tốt
A87: 83 | B87: 1_2016-2017 | C87: 1451153157 | D87: Trịnh Tuấn Dương | E87: 56 TĐ-BĐ | F87: 62 | G87: 0.62 | H87: Trung bình
A88: 84 | B88: 1_2016-2017 | C88: 1451153002 | D88: Trịnh Hải Đăng | E88: 56 TĐ-BĐ | F88: 0 | G88: 0.00 | H88: Kém
A89: 85 | B89: 1_2016-2017 | C89: 1451153194 | D89: Nguyễn Thành Đông | E89: 56 TĐ-BĐ | F89: 86 | G89: 0.86 | H89: Tốt
A90: 86 | B90: 1_2016-2017 | C90: 1451152436 | D90: Nguyễn Văn Đức | E90: 56 TĐ-BĐ | F90: 80 | G90: 0.80 | H90: Tốt
A91: 87 | B91: 1_2016-2017 | C91: 1451152670 | D91: Trương Minh Đức | E91: 56 TĐ-BĐ | F91: 80 | G91: 0.80 | H91: Tốt
A92: 88 | B92: 1_2016-2017 | C92: 1451152997 | D92: Đỗ Văn Hà | E92: 56 TĐ-BĐ | F92: 86 | G92: 0.86 | H92: Tốt
A93: 89 | B93: 1_2016-2017 | C93: 1451153256 | D93: Đinh Văn Hải | E93: 56 TĐ-BĐ | F93: 57 | G93: 0.57 | H93: Trung bình
A94: 90 | B94: 1_2016-2017 | C94: 1451153530 | D94: Nguyễn Vũ Hải | E94: 56 TĐ-BĐ | F94: 72 | G94: 0.72 | H94: Khá
A95: 91 | B95: 1_2016-2017 | C95: 1451153199 | D95: Lê Văn Hải | E95: 56 TĐ-BĐ | F95: 82 | G95: 0.82 | H95: Tốt
A96: 92 | B96: 1_2016-2017 | C96: 1451152368 | D96: Trần Đình Hân | E96: 56 TĐ-BĐ | F96: 0 | G96: 0.00 | H96: Kém
A97: 93 | B97: 1_2016-2017 | C97: 1451152340 | D97: Phạm Thanh Hiệp | E97: 56 TĐ-BĐ | F97: 70 | G97: 0.70 | H97: Khá
A98: 94 | B98: 1_2016-2017 | C98: 1351153026 | D98: Trần Thanh Hiếu | E98: 56 TĐ-BĐ | F98: 50 | G98: 0.50 | H98: Trung bình
A99: 95 | B99: 1_2016-2017 | C99: 1451152799 | D99: Trần Văn Hoà | E99: 56 TĐ-BĐ | F99: 60 | G99: 0.60 | H99: Trung bình
A100: 96 | B100: 1_2016-2017 | C100: 1451153106 | D100: Nguyễn Thị Ngọc Huyền | E100: 56 TĐ-BĐ | F100: 80 | G100: 0.80 | H100: Tốt
A101: 97 | B101: 1_2016-2017 | C101: 1451153024 | D101: Phan Ngọc Huyền | E101: 56 TĐ-BĐ | F101: 70 | G101: 0.70 | H101: Khá
A102: 98 | B102: 1_2016-2017 | C102: 1451153150 | D102: Trần Thị Huyền | E102: 56 TĐ-BĐ | F102: 60 | G102: 0.60 | H102: Trung bình
A103: 99 | B103: 1_2016-2017 | C103: 1451152650 | D103: Trần Quang Hưng | E103: 56 TĐ-BĐ | F103: 80 | G103: 0.80 | H103: Tốt
A104: 100 | B104: 1_2016-2017 | C104: 1451152524 | D104: Kiều Bá Khoát | E104: 56 TĐ-BĐ | F104: 81 | G104: 0.81 | H104: Tốt
A105: 101 | B105: 1_2016-2017 | C105: 1451152732 | D105: Kiều Trung Kiên | E105: 56 TĐ-BĐ | F105: 70 | G105: 0.70 | H105: Khá
A106: 102 | B106: 1_2016-2017 | C106: 1451152420 | D106: Phạm Duy Linh | E106: 56 TĐ-BĐ | F106: 70 | G106: 0.70 | H106: Khá
A107: 103 | B107: 1_2016-2017 | C107: 1451152958 | D107: Nguyễn Tuấn Minh | E107: 56 TĐ-BĐ | F107: 74 | G107: 0.74 | H107: Khá
A108: 104 | B108: 1_2016-2017 | C108: 1451152853 | D108: Vũ Đức Minh | E108: 56 TĐ-BĐ | F108: 50 | G108: 0.50 | H108: Trung bình
A109: 105 | B109: 1_2016-2017 | C109: 1451152815 | D109: Lương Hoài Nam | E109: 56 TĐ-BĐ | F109: 62 | G109: 0.62 | H109: Trung bình
A110: 106 | B110: 1_2016-2017 | C110: 1451152456 | D110: Đỗ Đăng Năm | E110: 56 TĐ-BĐ | F110: 60 | G110: 0.60 | H110: Trung bình
A111: 107 | B111: 1_2016-2017 | C111: 135NH3285 | D111: Lò Thị Nga(NH) | E111: 56 TĐ-BĐ | F111: 77 | G111: 0.77 | H111: Khá
A112: 108 | B112: 1_2016-2017 | C112: 1451152534 | D112: Phí Văn Ninh | E112: 56 TĐ-BĐ | F112: 78 | G112: 0.78 | H112: Khá
A113: 109 | B113: 1_2016-2017 | C113: 1451152950 | D113: Hoàng Lam Phong | E113: 56 TĐ-BĐ | F113: 60 | G113: 0.60 | H113: Trung bình
A114: 110 | B114: 1_2016-2017 | C114: 1451153221 | D114: Nguyễn Thị Phương | E114: 56 TĐ-BĐ | F114: 94 | G114: 0.94 | H114: Xuất sắc
A115: 111 | B115: 1_2016-2017 | C115: 1451152597 | D115: Nguyễn Thị Phượng | E115: 56 TĐ-BĐ | F115: 80 | G115: 0.80 | H115: Tốt
A116: 112 | B116: 1_2016-2017 | C116: 1451152309 | D116: Mông Tuấn Quyền | E116: 56 TĐ-BĐ | F116: 65 | G116: 0.65 | H116: Khá
A117: 113 | B117: 1_2016-2017 | C117: 135NK0130 | D117: Lê Công Quyết | E117: 56 TĐ-BĐ | F117: 65 | G117: 0.65 | H117: Khá
A118: 114 | B118: 1_2016-2017 | C118: 1451153265 | D118: Đinh Hồng Sơn | E118: 56 TĐ-BĐ | F118: 50 | G118: 0.50 | H118: Trung bình
A119: 115 | B119: 1_2016-2017 | C119: 1451152590 | D119: Đinh Văn Tài | E119: 56 TĐ-BĐ | F119: 60 | G119: 0.60 | H119: Trung bình
A120: 116 | B120: 1_2016-2017 | C120: 1451152835 | D120: Lê Xuân Tài | E120: 56 TĐ-BĐ | F120: 80 | G120: 0.80 | H120: Tốt
A121: 117 | B121: 1_2016-2017 | C121: 1451152434 | D121: Đinh Quang Tân | E121: 56 TĐ-BĐ | F121: 52 | G121: 0.52 | H121: Trung bình
A122: 118 | B122: 1_2016-2017 | C122: 1451152750 | D122: Nguyễn Văn Thái | E122: 56 TĐ-BĐ | F122: 70 | G122: 0.70 | H122: Khá
A123: 119 | B123: 1_2016-2017 | C123: 1451151120 | D123: Lê Thị Thảo | E123: 56 TĐ-BĐ | F123: 85 | G123: 0.85 | H123: Tốt
A124: 120 | B124: 1_2016-2017 | C124: 1451153223 | D124: Phùng Thị Thu Thảo | E124: 56 TĐ-BĐ | F124: 80 | G124: 0.80 | H124: Tốt
A125: 121 | B125: 1_2016-2017 | C125: 1451153272 | D125: Cao Thế Thịnh | E125: 56 TĐ-BĐ | F125: 72 | G125: 0.72 | H125: Khá
A126: 122 | B126: 1_2016-2017 | C126: 1451152333 | D126: Nguyễn Dụng Thuần | E126: 56 TĐ-BĐ | F126: 72 | G126: 0.72 | H126: Khá
A127: 123 | B127: 1_2016-2017 | C127: 1451152611 | D127: Nguyễn Doãn Thuận | E127: 56 TĐ-BĐ | F127: 50 | G127: 0.50 | H127: Trung bình
A128: 124 | B128: 1_2016-2017 | C128: 1451153057 | D128: Trần Tiến Tiệp | E128: 56 TĐ-BĐ | F128: 74 | G128: 0.74 | H128: Khá
A129: 125 | B129: 1_2016-2017 | C129: 1451153000 | D129: Nguyễn Huyền Trang | E129: 56 TĐ-BĐ | F129: 90 | G129: 0.90 | H129: Xuất sắc
A130: 126 | B130: 1_2016-2017 | C130: 1451152312 | D130: Lưu Văn Trọng | E130: 56 TĐ-BĐ | F130: 0 | G130: 0.00 | H130: Kém
A131: 127 | B131: 1_2016-2017 | C131: 1451152895 | D131: Đinh Thành Trung | E131: 56 TĐ-BĐ | F131: 72 | G131: 0.72 | H131: Khá
A132: 128 | B132: 1_2016-2017 | C132: 1451152545 | D132: Bùi Mạnh Tuấn | E132: 56 TĐ-BĐ | F132: 55 | G132: 0.55 | H132: Trung bình
A133: 129 | B133: 1_2016-2017 | C133: 1451153094 | D133: Kiều Minh Tuấn | E133: 56 TĐ-BĐ | F133: 70 | G133: 0.70 | H133: Khá
A134: 130 | B134: 1_2016-2017 | C134: 1451152738 | D134: Nguyễn Ngọc Tuấn | E134: 56 TĐ-BĐ | F134: 62 | G134: 0.62 | H134: Trung bình
A135: =+A134+1 -> 131 | B135: 1_2016-2017 | C135: 1451152572 | D135: Nguyễn Quang Tuấn | E135: 56 TĐ-BĐ | F135: 84 | G135: 0.84 | H135: Tốt
A136: 132 | B136: 1_2016-2017 | C136: 1451152673 | D136: Phan Anh Tuấn | E136: 56 TĐ-BĐ | F136: 60 | G136: 0.60 | H136: =IF(F136>89,"Xuất sắc",IF((F136>79)*AND(F136<90),"Tốt",IF((F136>64)*AND(F136<80),"Khá",IF((F136>49)*AND(F136<65),"Trung bình",IF((F136>34)*AND(F136<50),"Yếu",IF((F136<35)*AND(F136>=0),"Kém"," ")))))) -> Trung bình
A137: 133 | B137: 1_2016-2017 | C137: 1451151195 | D137: Trần Anh Tuấn | E137: 56 TĐ-BĐ | F137: 75 | G137: 0.75 | H137: Khá
A138: 134 | B138: 1_2016-2017 | C138: 1451153179 | D138: Vũ Anh Tuấn | E138: 56 TĐ-BĐ | F138: 70 | G138: 0.70 | H138: Khá
A139: 135 | B139: 1_2016-2017 | C139: 1451153143 | D139: Nguyễn Duy Tùng | E139: 56 TĐ-BĐ | F139: 80 | G139: 0.80 | H139: Tốt
A140: 136 | B140: 1_2016-2017 | C140: 1451153220 | D140: Thân Văn Ước | E140: 56 TĐ-BĐ | F140: 70 | G140: 0.70 | H140: Khá
A141: 137 | B141: 1_2016-2017 | C141: 1451153114 | D141: Cao Văn Việt | E141: 56 TĐ-BĐ | F141: 60 | G141: 0.60 | H141: Trung bình
A142: 138 | B142: 1_2016-2017 | C142: 1451152498 | D142: Tô Thanh Việt | E142: 56 TĐ-BĐ | F142: 54 | G142: 0.54 | H142: Trung bình
A143: 139 | B143: 1_2016-2017 | C143: 1451152579 | D143: Bùi Ngọc Vinh | E143: 56 TĐ-BĐ | F143: 50 | G143: 0.50 | H143: Trung bình
A144: 140 | B144: 1_2016-2017 | C144: 1451151014 | D144: Vũ Thị Thanh Vui | E144: 56 TĐ-BĐ | F144: 95 | G144: =F144/100 -> 0.95 | H144: Xuất sắc
A145: 141 | B145: 1_2016-2017 | C145: 1551151379 | D145: Trần Thị Hải Anh | E145: 57 TĐ-BĐ | F145: 67 | G145: 0.67 | H145: Khá
A146: 142 | B146: 1_2016-2017 | C146: 1551151406 | D146: Nguyễn Văn Chung | E146: 57 TĐ-BĐ | F146: 74 | G146: 0.74 | H146: Khá
A147: 143 | B147: 1_2016-2017 | C147: 1551151589 | D147: Trần Xuân Chung | E147: 57 TĐ-BĐ | F147: 73 | G147: 0.73 | H147: Khá
A148: 144 | B148: 1_2016-2017 | C148: 1551151385 | D148: Nguyễn Đức Công | E148: 57 TĐ-BĐ | F148: 80 | G148: 0.80 | H148: Tốt
A149: 145 | B149: 1_2016-2017 | C149: 1551151526 | D149: Phạm Mạnh Cường | E149: 57 TĐ-BĐ | F149: 69 | G149: 0.69 | H149: Khá
A150: 146 | B150: 1_2016-2017 | C150: 1551151463 | D150: Phạm Tuấn Đạt | E150: 57 TĐ-BĐ | F150: 61 | G150: 0.61 | H150: Trung bình
A151: 147 | B151: 1_2016-2017 | C151: 1551151394 | D151: Nguyễn Xuân Đông | E151: 57 TĐ-BĐ | F151: 65 | G151: 0.65 | H151: Khá
A152: 148 | B152: 1_2016-2017 | C152: 1551151564 | D152: Phạm Văn Đồng | E152: 57 TĐ-BĐ | F152: 55 | G152: 0.55 | H152: Trung bình
A153: 149 | B153: 1_2016-2017 | C153: 1551151454 | D153: Cù Xuân Gia | E153: 57 TĐ-BĐ | F153: 0 | G153: 0.00 | H153: Kém
A154: 150 | B154: 1_2016-2017 | C154: 1551151352 | D154: Phan Xuân Hải | E154: 57 TĐ-BĐ | F154: 62 | G154: 0.62 | H154: Trung bình
A155: 151 | B155: 1_2016-2017 | C155: 1551151309 | D155: Vũ Văn Hải | E155: 57 TĐ-BĐ | F155: 0 | G155: 0.00 | H155: Kém
A156: 152 | B156: 1_2016-2017 | C156: 1551151336 | D156: Trương Thị Hậu | E156: 57 TĐ-BĐ | F156: 86 | G156: 0.86 | H156: Tốt
A157: 153 | B157: 1_2016-2017 | C157: 1551151301 | D157: Nguyễn Văn Hiển | E157: 57 TĐ-BĐ | F157: 65 | G157: 0.65 | H157: Khá
A158: 154 | B158: 1_2016-2017 | C158: 1551151631 | D158: Nguyễn Xuân Hiển | E158: 57 TĐ-BĐ | F158: 68 | G158: 0.68 | H158: Khá
A159: 155 | B159: 1_2016-2017 | C159: 1551151371 | D159: Triệu Thế Hiển | E159: 57 TĐ-BĐ | F159: 0 | G159: 0.00 | H159: Kém
A160: 156 | B160: 1_2016-2017 | C160: 1551151338 | D160: Bùi Minh Hiếu | E160: 57 TĐ-BĐ | F160: 72 | G160: 0.72 | H160: Khá
A161: 157 | B161: 1_2016-2017 | C161: 1551151432 | D161: Lê Trần Quang Hưng | E161: 57 TĐ-BĐ | F161: 72 | G161: 0.72 | H161: Khá
A162: 158 | B162: 1_2016-2017 | C162: 1551151680 | D162: Bùi Thanh Hương | E162: 57 TĐ-BĐ | F162: 62 | G162: 0.62 | H162: Trung bình
A163: 159 | B163: 1_2016-2017 | C163: 1551151413 | D163: Phạm Quang Khải | E163: 57 TĐ-BĐ | F163: 65 | G163: 0.65 | H163: Khá
A164: 160 | B164: 1_2016-2017 | C164: 1551151658 | D164: Vũ Hồng Khanh | E164: 57 TĐ-BĐ | F164: 0 | G164: 0.00 | H164: Kém
A165: 161 | B165: 1_2016-2017 | C165: 1551151311 | D165: Kiều Quốc Khánh | E165: 57 TĐ-BĐ | F165: 86 | G165: 0.86 | H165: Tốt
A166: 162 | B166: 1_2016-2017 | C166: 1551151596 | D166: Đặng Văn Lịch | E166: 57 TĐ-BĐ | F166: 74 | G166: 0.74 | H166: Khá
A167: 163 | B167: 1_2016-2017 | C167: 1551151405 | D167: Nguyễn Phương Nam | E167: 57 TĐ-BĐ | F167: 66 | G167: 0.66 | H167: Khá
A168: 164 | B168: 1_2016-2017 | C168: 1551151285 | D168: Tô Bá Nhật | E168: 57 TĐ-BĐ | F168: 70 | G168: 0.70 | H168: Khá
A169: 165 | B169: 1_2016-2017 | C169: 1551151633 | D169: Đỗ Văn Ninh | E169: 57 TĐ-BĐ | F169: 77 | G169: 0.77 | H169: Khá
A170: 166 | B170: 1_2016-2017 | C170: 1551151498 | D170: Nguyễn Hà Phong | E170: 57 TĐ-BĐ | F170: 54 | G170: 0.54 | H170: Trung bình
A171: 167 | B171: 1_2016-2017 | C171: 1551151477 | D171: Nguyễn Tiến Phong | E171: 57 TĐ-BĐ | F171: 77 | G171: 0.77 | H171: Khá
A172: 168 | B172: 1_2016-2017 | C172: 1551151502 | D172: Nguyễn Hồng Quang | E172: 57 TĐ-BĐ | F172: 77 | G172: 0.77 | H172: Khá
A173: 169 | B173: 1_2016-2017 | C173: 1551151250 | D173: Nguyễn Tiến Quốc | E173: 57 TĐ-BĐ | F173: 64 | G173: 0.64 | H173: Trung bình
A174: 170 | B174: 1_2016-2017 | C174: 1551151190 | D174: Bùi Nam Sơn | E174: 57 TĐ-BĐ | F174: 70 | G174: 0.70 | H174: Khá
A175: 171 | B175: 1_2016-2017 | C175: 1551151298 | D175: Lê Viết Tâm | E175: 57 TĐ-BĐ | F175: 64 | G175: 0.64 | H175: Trung bình
A176: 172 | B176: 1_2016-2017 | C176: 1551151316 | D176: Vũ Hồng Thái | E176: 57 TĐ-BĐ | F176: 68 | G176: 0.68 | H176: Khá
A177: 173 | B177: 1_2016-2017 | C177: 1551152796 | D177: Bùi Nguyên Thắng | E177: 57 TĐ-BĐ | F177: 0 | G177: 0.00 | H177: Kém
A178: 174 | B178: 1_2016-2017 | C178: 1551151239 | D178: Nguyễn Khắc Thông | E178: 57 TĐ-BĐ | F178: 67 | G178: 0.67 | H178: Khá
A179: 175 | B179: 1_2016-2017 | C179: 1551151284 | D179: Trịnh Xuân Thuần | E179: 57 TĐ-BĐ | F179: 0 | G179: 0.00 | H179: Kém
A180: 176 | B180: 1_2016-2017 | C180: 1551151358 | D180: Hoàng Văn Toản | E180: 57 TĐ-BĐ | F180: 71 | G180: 0.71 | H180: Khá
A181: 177 | B181: 1_2016-2017 | C181: 1551151236 | D181: Nguyễn Trọng Trí | E181: 57 TĐ-BĐ | F181: 51 | G181: 0.51 | H181: Trung bình
A182: 178 | B182: 1_2016-2017 | C182: 1551151642 | D182: Lưu Danh Trinh | E182: 57 TĐ-BĐ | F182: 65 | G182: 0.65 | H182: Khá
A183: 179 | B183: 1_2016-2017 | C183: 1551151222 | D183: Nguyễn Việt Trung | E183: 57 TĐ-BĐ | F183: 83 | G183: 0.83 | H183: Tốt
A184: 180 | B184: 1_2016-2017 | C184: 1551151508 | D184: Lưu Ngọc Tùng | E184: 57 TĐ-BĐ | F184: 67 | G184: 0.67 | H184: Khá
A185: 181 | B185: 1_2016-2017 | C185: 1551151243 | D185: Trần Đình Văn | E185: 57 TĐ-BĐ | F185: 0 | G185: 0.00 | H185: Kém
A186: 182 | B186: 1_2016-2017 | C186: 1551151582 | D186: Phạm Tuấn Vũ | E186: 57 TĐ-BĐ | F186: 68 | G186: 0.68 | H186: Khá
A187: 183 | B187: 1_2016-2017 | C187: 09510500865 | D187: Nguyễn Tiến Lĩnh | E187: 51M TBTC | F187: 68 | G187: =+F187/100 -> 0.68 | H187: =IF(F187>89,"Xuất sắc",IF((F187>79)*AND(F187<90),"Tốt",IF((F187>64)*AND(F187<80),"Khá",IF((F187>49)*AND(F187<65),"Trung bình",IF((F187>34)*AND(F187<50),"Yếu",IF((F187<35)*AND(F187>=0),"Kém"," ")))))) -> Khá
A188: 184 | B188: 1_2016-2017 | C188: 1051051897 | D188: Lê Anh Tuấn | E188: 52M TBLĐ | F188: 0 | G188: =+F188/100 -> 0.00 | H188: =IF(F188>89,"Xuất sắc",IF((F188>79)*AND(F188<90),"Tốt",IF((F188>64)*AND(F188<80),"Khá",IF((F188>49)*AND(F188<65),"Trung bình",IF((F188>34)*AND(F188<50),"Yếu",IF((F188<35)*AND(F188>=0),"Kém"," ")))))) -> Kém
A189: 185 | B189: 1_2016-2017 | C189: 1051052020 | D189: Triệu Quang Vinh | E189: 52M TBLĐ | F189: 0 | G189: 0.00 | H189: Kém
A190: 186 | B190: 1_2016-2017 | C190: 09510500776 | D190: Nguyễn Văn Khương | E190: 52M TBLĐ | F190: 0 | G190: 0.00 | H190: Kém
A191: 187 | B191: 1_2016-2017 | C191: 1051050491 | D191: Trịnh Văn Hiển | E191: 52M TBLĐ | F191: 0 | G191: 0.00 | H191: Kém
A192: 188 | B192: 1_2016-2017 | C192: 1051050065 | D192: Nguyễn Văn Cương | E192: 52M TBNC | F192: 0 | G192: 0.00 | H192: Kém
A193: 189 | B193: 1_2016-2017 | C193: 1051051410 | D193: Nguyễn Hồng Sơn | E193: 52M TBNC | F193: 70 | G193: 0.70 | H193: Khá
A194: 190 | B194: 1_2016-2017 | C194: 1051051705 | D194: Bùi Văn Tiến | E194: 52M TBNC | F194: 68 | G194: 0.68 | H194: Khá
A195: 191 | B195: 1_2016-2017 | C195: 1051051007 | D195: Nguyễn Văn Mạnh | E195: 52M TBTC | F195: 68 | G195: 0.68 | H195: Khá
A196: 192 | B196: 1_2016-2017 | C196: 1051059933 | D196: Nguyễn Việt Anh | E196: 52M TBTC | F196: 0 | G196: 0.00 | H196: Kém
A197: 193 | B197: 1_2016-2017 | C197: 1151051975 | D197: Mai Ngọc Huấn | E197: 53M TBLD | F197: 0 | G197: 0.00 | H197: Kém
A198: 194 | B198: 1_2016-2017 | C198: 1051050207 | D198: Vũ Khương Duy | E198: 53M TBLD | F198: 73 | G198: 0.73 | H198: Khá
A199: =+A198+1 -> 195 | B199: 1_2016-2017 | C199: 1151050804 | D199: Đào Văn Duy | E199: 53M TBLD | F199: 73 | G199: 0.73 | H199: Khá
A200: 196 | B200: 1_2016-2017 | C200: 1151050818 | D200: Đinh Ngọc Huy | E200: 53M TBLD | F200: 0 | G200: 0.00 | H200: Kém
A201: 197 | B201: 1_2016-2017 | C201: 1051051417 | D201: Phạm Ngọc Sơn | E201: 53M TBLD | F201: 0 | G201: 0.00 | H201: Kém
... 4299 more rows
